[Event "Seniors-LEM-50 Sachsen-Anhalt 2024"]
[Site "Magdeburg"]
[Date "2024.07.06"]
[Round "6.13"]
[White "Scheunemann, Uwe"]
[Black "Wahrenberg, Ralf"]
[Result "1/2-1/2"]
[ECO "C55"]
[WhiteElo "1764"]
[BlackElo "1873"]
[Annotator "NA RC"]
[PlyCount "73"]
[EventDate "2024.06.25"]
[EventType "swiss"]
[EventCountry "GER"]
[SourceTitle "playchess.com"]
[Source "ChessBase"]
[SourceQuality "1"]
[TimeControl "40/5400+30:1800+30"]

1. e4 {[%emt 0:00:08]} e5 {[%emt 0:00:24]} 2. Nf3 {[%emt 0:00:23]} Nc6 {[%emt 0:00:04]} 3. Nc3 {[%emt 0:01:05]} Nf6 {[%emt 0:01:15]} 4. Bc4 {[%emt 0:01:39]} Nxe4 {[%emt 0:05:04]} 5. Bxf7+ {[%emt 0:04:09]} Kxf7 {[%emt 0:00:18]} 6. Nxe4 {[%emt 0:00:20]} d5 {[%emt 0:00:02]} 7. Nc3 {[%emt 0:07:12]} e4 {[%emt 0:14:22]} 8. Ng1 {[%emt 0:03:52]} h5 {[%emt 0:26:06]} 9. d3 {[%emt 0:01:08]} Bg4 {[%emt 0:02:05]} 10. Qd2 {[%emt 0:02:32]} Bb4 {[%emt 0:03:25]} 11. a3 {[%emt 0:09:00]} Ba5 {[%emt 0:04:05]} 12. b4 {[%emt 0:04:04]} Bb6 {[%emt 0:05:25]} 13. dxe4 {[%emt 0:05:57]} dxe4 {[%emt 0:02:48]} 14. Qf4+ {[%emt 0:00:38]} Qf6 {[%emt 0:01:54]} 15. Nge2 {[%emt 0:15:17]} Rhe8 {[%emt 0:02:05]} 16. O-O {[%emt 0:04:37]} Kg8 {[%emt 0:02:00]} 17. Qxf6 {[%emt 0:00:41]} gxf6 {[%emt 0:00:01]} 18. h3 {[%emt 0:03:36]} Bxe2 {[%emt 0:05:29]} 19. Nxe2 {[%emt 0:00:09]} Nd4 {[%emt 0:04:55]} 20. Nxd4 {[%emt 0:05:42]} Bxd4 {[%emt 0:00:15]} 21. Rb1 {[%emt 0:00:41]} Kf7 {[%emt 0:02:48]} 22. c4 {[%emt 0:01:34]} Rad8 {[%emt 0:00:41]} 23. Bf4 {[%emt 0:02:50]} Be5 {[%emt 0:01:13]} 24. Bxe5 {[%emt 0:01:43]} Rxe5 {[%emt 0:00:02]} 25. Rbd1 {[%emt 0:00:41]} Rxd1 {[%emt 0:02:44]} 26. Rxd1 {[%emt 0:00:01]} Ke7 {[%emt 0:00:16]} 27. Kf1 {[%emt 0:03:13]} f5 {[%emt 0:03:57]} 28. g3 {[%emt 0:01:01]} b6 {[%emt 0:01:05]} 29. Ke2 {[%emt 0:00:27]} h4 {[%emt 0:03:05]} 30. Ke3 {[%emt 0:00:53]} hxg3 {[%emt 0:00:43]} 31. fxg3 {[%emt 0:00:31]} Kf6 {[%emt 0:01:25]} 32. h4 {[%emt 0:00:47]} Re7 {[%emt 0:00:09]} 33. b5 {[%emt 0:02:13]} Rg7 {[%emt 0:00:14]} 34. Rg1 {[%emt 0:04:12]} Ke5 {[%emt 0:00:48]} 35. Rg2 {[%emt 0:01:35]} Rg4 {[%emt 0:02:37]} 36. a4 {[%emt 0:01:45]} Rg7 {[%emt 0:00:29]} 37. Rg1 {[%emt 0:01:55]} 1/2-1/2

[Event "Seniors-LEM-50 Sachsen-Anhalt 2024"]
[Site "Magdeburg"]
[Date "2024.07.06"]
[Round "6.15"]
[White "Bachmann, Sylvia"]
[Black "Remstedt, Ute"]
[Result "1-0"]
[ECO "C55"]
[WhiteElo "1768"]
[BlackElo "1710"]
[Annotator "NA RC"]
[PlyCount "65"]
[EventDate "2024.06.25"]
[EventType "swiss"]
[EventCountry "GER"]
[SourceTitle "playchess.com"]
[Source "ChessBase"]
[SourceQuality "1"]
[TimeControl "40/5400+30:1800+30"]

1. e4 {[%emt 0:00:04]} e5 {[%emt 0:00:16]} 2. Nf3 {[%emt 0:00:06]} Nc6 {[%emt 0:00:14]} 3. Bc4 {[%emt 0:00:16]} Nf6 {[%emt 0:01:22]} 4. d3 {[%emt 0:01:00]} h6 {[%emt 0:00:35]} 5. c3 {[%emt 0:00:25]} d6 {[%emt 0:05:09]} 6. h3 {[%emt 0:00:18]} Bd7 {[%emt 0:03:11]} 7. O-O {[%emt 0:00:56]} Ne7 {[%emt 0:06:49]} 8. Qb3 {[%emt 0:04:30]} Be6 {[%emt 0:10:39]} 9. Bxe6 {[%emt 0:02:09]} fxe6 {[%emt 0:00:03]} 10. Qxe6 {[%emt 0:00:25]} Qd7 {[%emt 0:04:25]} 11. Qxd7+ {[%emt 0:01:02]} Nxd7 {[%emt 0:00:14]} 12. d4 {[%emt 0:00:16]} exd4 {[%emt 0:06:40]} 13. cxd4 {[%emt 0:00:14]} O-O-O {[%emt 0:02:33]} 14. Nc3 {[%emt 0:00:51]} a6 {[%emt 0:01:32]} 15. Be3 {[%emt 0:03:22]} g5 {[%emt 0:05:12]} 16. Rfd1 {[%emt 0:03:16]} Bg7 {[%emt 0:02:30]} 17. Rac1 {[%emt 0:01:07]} Kb8 {[%emt 0:00:27]} 18. d5 {[%emt 0:00:51]} Rhf8 {[%emt 0:07:07]} 19. Bd4 {[%emt 0:02:07]} Bf6 {[%emt 0:06:34]} 20. Bxf6 {[%emt 0:01:02]} Rxf6 {[%emt 0:00:41]} 21. Nd4 {[%emt 0:00:14]} Ne5 {[%emt 0:05:07]} 22. f3 {[%emt 0:01:32]} h5 {[%emt 0:04:26]} 23. Ne6 {[%emt 0:02:16]} Rg8 {[%emt 0:00:13]} 24. Ne2 {[%emt 0:03:25]} g4 {[%emt 0:01:34]} 25. fxg4 {[%emt 0:01:24]} hxg4 {[%emt 0:00:14]} 26. N2f4 {[%emt 0:00:20]} gxh3 {[%emt 0:01:20]} 27. Nxh3 {[%emt 0:00:46]} Rh6 {[%emt 0:05:02]} 28. Rc3 {[%emt 0:01:23]} Rg4 {[%emt 0:02:37]} 29. Nf2 {[%emt 0:13:24]} Rgg6 {[%emt 0:08:04]} 30. Rh3 {[%emt 0:08:15]} Rxh3 {[%emt 0:01:40]} 31. Nxh3 {[%emt 0:00:32]} c6 {[%emt 0:01:54]} 32. Nhf4 {[%emt 0:02:01]} Rg4 {[%emt 0:00:34]} 33. dxc6 {[%emt 0:02:25]} 1-0

[Event "Seniors-LEM-50 Sachsen-Anhalt 2024"]
[Site "Magdeburg"]
[Date "2024.07.06"]
[Round "6.16"]
[White "Gaul, Karl-Heinz"]
[Black "Giesenberg, Angela"]
[Result "0-1"]
[ECO "E70"]
[WhiteElo "1684"]
[BlackElo "1827"]
[Annotator "NA RC"]
[PlyCount "72"]
[EventDate "2024.06.25"]
[EventType "swiss"]
[EventCountry "GER"]
[SourceTitle "playchess.com"]
[Source "ChessBase"]
[SourceQuality "1"]
[TimeControl "40/5400+30:1800+30"]

1. d4 {[%emt 0:00:15]} Nf6 {[%emt 0:00:10]} 2. c4 {[%emt 0:00:18]} d6 {[%emt 0:00:03]} 3. Nc3 {[%emt 0:02:21]} g6 {[%emt 0:00:07]} 4. e4 {[%emt 0:01:59]} Bg7 {[%emt 0:00:20]} 5. Bg5 {[%emt 0:04:25]} h6 {[%emt 0:00:32]} 6. Bh4 {[%emt 0:00:10]} O-O {[%emt 0:00:28]} 7. Nh3 {[%emt 0:03:32]} c5 {[%emt 0:03:56]} 8. d5 {[%emt 0:04:37]} a6 {[%emt 0:02:15]} 9. Qd2 {[%emt 0:02:03]} Bd7 {[%emt 0:06:50]} 10. f3 {[%emt 0:01:29]} Ne8 {[%emt 0:06:40]} 11. g4 {[%emt 0:01:48]} g5 {[%emt 0:03:05]} 12. Bg3 {[%emt 0:03:09]} Nc7 {[%emt 0:01:42]} 13. Be2 {[%emt 0:01:41]} b5 {[%emt 0:00:33]} 14. O-O {[%emt 0:01:01]} bxc4 {[%emt 0:01:57]} 15. Bxc4 {[%emt 0:00:39]} Nb5 {[%emt 0:00:51]} 16. Nxb5 {[%emt 0:02:02]} Bxb5 {[%emt 0:04:07]} 17. Bxb5 {[%emt 0:05:53]} axb5 {[%emt 0:00:11]} 18. f4 {[%emt 0:00:47]} f6 {[%emt 0:01:25]} 19. fxg5 {[%emt 0:00:54]} fxg5 {[%emt 0:02:40]} 20. Rxf8+ {[%emt 0:00:15]} Kxf8 {[%emt 0:00:24]} 21. Rf1+ {[%emt 0:03:34]} Kg8 {[%emt 0:00:51]} 22. Qf2 {[%emt 0:01:59]} Bd4 {[%emt 0:00:39]} 23. e5 {[%emt 0:01:32]} Bxf2+ {[%emt 0:00:47]} 24. Bxf2 {[%emt 0:00:35]} Nd7 {[%emt 0:05:26]} 25. exd6 {[%emt 0:03:03]} exd6 {[%emt 0:00:05]} 26. Bg3 {[%emt 0:00:44]} Ne5 {[%emt 0:01:16]} 27. Nf2 {[%emt 0:00:31]} Qd7 {[%emt 0:06:16]} 28. h3 {[%emt 0:00:12]} Rf8 {[%emt 0:01:22]} 29. Rc1 {[%emt 0:00:40]} Rf3 {[%emt 0:02:48]} 30. Ne4 {[%emt 0:02:43]} Rxg3+ {[%emt 0:08:14]} 31. Nxg3 {[%emt 0:00:31]} c4 {[%emt 0:01:44]} 32. Kg2 {[%emt 0:02:45]} Qf7 {[%emt 0:02:51]} 33. Rc3 {[%emt 0:06:25]} Qxd5+ {[%emt 0:00:33]} 34. Kf2 {[%emt 0:00:21]} Nd3+ {[%emt 0:00:47]} 35. Ke3 {[%emt 0:00:25]} Qe5+ {[%emt 0:01:26]} 36. Ne4 {[%emt 0:00:11]} d5 {[%emt 0:00:23]} 0-1

[Event "Seniors-LEM-50 Sachsen-Anhalt 2024"]
[Site "Magdeburg"]
[Date "2024.07.07"]
[Round "7.3"]
[White "Dannhauer, Frank"]
[Black "Ackermann, Robert"]
[Result "0-1"]
[ECO "C56"]
[WhiteElo "1921"]
[BlackElo "2041"]
[Annotator "RC"]
[PlyCount "74"]
[EventDate "2024.06.25"]
[EventType "swiss"]
[EventCountry "GER"]
[SourceTitle "playchess.com"]
[Source "ChessBase"]
[SourceQuality "1"]
[TimeControl "40/5400+30:1800+30"]

1. e4 {[%emt 0:00:06]} e5 {[%emt 0:00:25]} 2. Nf3 {[%emt 0:00:18]} Nc6 {[%emt 0:00:08]} 3. d4 {[%emt 0:00:08]} exd4 {[%emt 0:00:14]} 4. Bc4 {[%emt 0:00:08]} Nf6 {[%emt 0:01:56]} 5. e5 {[%emt 0:01:26]} d5 {[%emt 0:00:39]} 6. Bb5 {[%emt 0:03:23]} Ne4 {[%emt 0:01:28]} 7. Nxd4 {[%emt 0:01:10]} Bd7 {[%emt 0:01:49]} 8. Bxc6 {[%emt 0:00:15]} bxc6 {[%emt 0:00:13]} 9. O-O {[%emt 0:00:11]} Bc5 {[%emt 0:00:31]} 10. Be3 {[%emt 0:00:48]} O-O {[%emt 0:04:21]} 11. f3 {[%emt 0:04:43]} Ng5 {[%emt 0:01:08]} 12. Qd2 {[%emt 0:03:22]} Ne6 {[%emt 0:13:35]} 13. f4 {[%emt 0:06:33]} Nxd4 {[%emt 0:03:52]} 14. Bxd4 {[%emt 0:00:16]} Bxd4+ {[%emt 0:00:07]} 15. Qxd4 {[%emt 0:00:06]} Bf5 {[%emt 0:00:14]} 16. Qc5 {[%emt 0:06:13]} Qb8 {[%emt 0:03:03]} 17. Qxc6 {[%emt 0:43:06]} Qxb2 {[%emt 0:00:19]} 18. Qc3 {[%emt 0:00:17]} Qb6+ {[%emt 0:03:59]} 19. Kh1 {[%emt 0:00:26]} c5 {[%emt 0:01:29]} 20. Nd2 {[%emt 0:02:56]} Rac8 {[%emt 0:02:27]} 21. Nf3 {[%emt 0:04:39]} Rfd8 {[%emt 0:06:39]} 22. Nh4 {[%emt 0:04:28]} Be4 {[%emt 0:01:18]} 23. f5 {[%emt 0:02:36]} Qh6 {[%emt 0:01:51]} 24. Qg3 {[%emt 0:03:49]} Bxc2 {[%emt 0:02:05]} 25. f6 {[%emt 0:04:15]} Re8 {[%emt 0:03:59]} 26. Nf5 {[%emt 0:02:39]} Bxf5 {[%emt 0:00:45]} 27. Rxf5 {[%emt 0:00:01]} g6 {[%emt 0:01:03]} 28. Re1 {[%emt 0:03:49]} Re6 {[%emt 0:03:19]} 29. Rf4 {[%emt 0:00:16]} Qh5 {[%emt 0:03:30]} 30. Rh4 {[%emt 0:01:42]} Qf5 {[%emt 0:00:32]} 31. Rf4 {[%emt 0:00:27]} Qh5 {[%emt 0:05:44]} 32. Rh4 {[%emt 0:00:01]} Qf5 {[%emt 0:00:30]} 33. Rf4 {[%emt 0:00:23]} Qc2 {[%emt 0:20:14]} 34. Qg5 {[%emt 0:00:28]} Qd2 {[%emt 0:01:35]} 35. Ref1 {[%emt 0:00:02]} Kh8 {[%emt 0:01:06]} 36. Qh6 {[%emt 0:02:25]} Rg8 {[%emt 0:00:12]} 37. R1f2 {[%emt 0:01:09]} Rxe5 {[%emt 0:12:41]} 0-1

[Event "Seniors-LEM-50 Sachsen-Anhalt 2024"]
[Site "Magdeburg"]
[Date "2024.07.07"]
[Round "7.4"]
[White "Mitschka, Manfred"]
[Black "Fabregas, Oliver"]
[Result "1/2-1/2"]
[ECO "E16"]
[WhiteElo "1863"]
[BlackElo "1876"]
[Annotator "NA RC"]
[PlyCount "84"]
[EventDate "2024.06.25"]
[EventType "swiss"]
[EventCountry "GER"]
[SourceTitle "playchess.com"]
[Source "ChessBase"]
[SourceQuality "1"]
[TimeControl "40/5400+30:1800+30"]

1. d4 {[%emt 0:00:03]} Nf6 {[%emt 0:00:10]} 2. c4 {[%emt 0:00:10]} e6 {[%emt 0:00:06]} 3. Nf3 {[%emt 0:00:20]} Bb4+ {[%emt 0:00:07]} 4. Bd2 {[%emt 0:00:10]} Qe7 {[%emt 0:00:05]} 5. Nc3 {[%emt 0:03:04]} b6 {[%emt 0:00:55]} 6. g3 {[%emt 0:00:24]} Bb7 {[%emt 0:00:08]} 7. Bg2 {[%emt 0:00:09]} O-O {[%emt 0:01:08]} 8. O-O {[%emt 0:00:05]} d6 {[%emt 0:01:07]} 9. Qc2 {[%emt 0:04:03]} Nbd7 {[%emt 0:01:58]} 10. a3 {[%emt 0:00:41]} Bxc3 {[%emt 0:00:08]} 11. Bxc3 {[%emt 0:00:08]} c5 {[%emt 0:04:42]} 12. Rfd1 {[%emt 0:03:07]} Rfd8 {[%emt 0:01:34]} 13. Rac1 {[%emt 0:03:56]} Rac8 {[%emt 0:02:30]} 14. dxc5 {[%emt 0:04:04]} dxc5 {[%emt 0:03:30]} 15. b3 {[%emt 0:01:40]} Nf8 {[%emt 0:05:52]} 16. Rxd8 {[%emt 0:07:12]} Rxd8 {[%emt 0:00:10]} 17. Rd1 {[%emt 0:00:29]} Ng6 {[%emt 0:04:02]} 18. Rxd8+ {[%emt 0:04:47]} Qxd8 {[%emt 0:00:08]} 19. Qd2 {[%emt 0:01:01]} Qxd2 {[%emt 0:04:01]} 20. Nxd2 {[%emt 0:00:52]} Bxg2 {[%emt 0:02:21]} 21. Kxg2 {[%emt 0:00:09]} Ne8 {[%emt 0:02:34]} 22. Kf3 {[%emt 0:00:35]} Kf8 {[%emt 0:00:10]} 23. h4 {[%emt 0:01:56]} Ke7 {[%emt 0:02:54]} 24. h5 {[%emt 0:02:35]} Nf8 {[%emt 0:00:15]} 25. b4 {[%emt 0:02:11]} Nd7 {[%emt 0:01:46]} 26. Ne4 {[%emt 0:08:16]} f6 {[%emt 0:02:49]} 27. g4 {[%emt 0:02:02]} Nd6 {[%emt 0:03:57]} 28. Nxd6 {[%emt 0:02:49]} Kxd6 {[%emt 0:00:08]} 29. Ke4 {[%emt 0:03:21]} Ke7 {[%emt 0:02:47]} 30. f4 {[%emt 0:01:35]} Kd6 {[%emt 0:04:33]} 31. b5 {[%emt 0:01:33]} g6 {[%emt 0:02:08]} 32. hxg6 {[%emt 0:02:16]} hxg6 {[%emt 0:00:05]} 33. f5 {[%emt 0:01:46]} gxf5+ {[%emt 0:18:29]} 34. gxf5 {[%emt 0:00:42]} Ke7 {[%emt 0:00:37]} 35. fxe6 {[%emt 0:02:38]} Kxe6 {[%emt 0:00:06]} 36. e3 {[%emt 0:01:01]} f5+ {[%emt 0:03:05]} 37. Kf4 {[%emt 0:01:25]} Nf8 {[%emt 0:02:16]} 38. e4 {[%emt 0:05:54]} fxe4 {[%emt 0:07:55]} 39. Kxe4 {[%emt 0:00:13]} Ng6 {[%emt 0:00:25]} 40. a4 {[%emt 0:01:15]} Kd7 {[%emt 0:00:47]} 41. Kf5 {[%emt 0:37:26]} Ne7+ {[%emt 0:34:13]} 42. Kf6 {[%emt 0:01:35]} Ng8+ {[%emt 0:02:32]} 1/2-1/2

[Event "Seniors-LEM-50 Sachsen-Anhalt 2024"]
[Site "Magdeburg"]
[Date "2024.07.07"]
[Round "7.5"]
[White "Anderberg, Peter"]
[Black "Puschendorf, Steffen"]
[Result "0-1"]
[ECO "D48"]
[WhiteElo "1909"]
[BlackElo "2067"]
[Annotator "RC"]
[PlyCount "22"]
[EventDate "2024.06.25"]
[EventType "swiss"]
[EventCountry "GER"]
[SourceTitle "playchess.com"]
[Source "ChessBase"]
[SourceQuality "1"]
[TimeControl "40/5400+30:1800+30"]

1. d4 {[%emt 0:00:24]} d5 {[%emt 0:00:57]} 2. c4 {[%emt 0:00:11]} e6 {[%emt 0:00:09]} 3. Nc3 {[%emt 0:00:16]} c6 {[%emt 0:00:39]} 4. e3 {[%emt 0:00:46]} Nf6 {[%emt 0:00:22]} 5. Nf3 {[%emt 0:02:07]} Nbd7 {[%emt 0:00:11]} 6. Bd3 {[%emt 0:00:28]} dxc4 {[%emt 0:03:17]} 7. Bxc4 {[%emt 0:02:33]} b5 {[%emt 0:00:23]} 8. Bd3 {[%emt 0:01:16]} a6 {[%emt 0:03:13]} 9. O-O {[%emt 0:09:52]} c5 {[%emt 0:04:59]} 10. dxc5 {[%emt 0:21:01]} Nxc5 {[%emt 0:01:05]} 11. Be2 {[%emt 0:03:10]} Qc7 {[%emt 0:02:16]} 0-1

[Event "Seniors-LEM-50 Sachsen-Anhalt 2024"]
[Site "Magdeburg"]
[Date "2024.07.07"]
[Round "7.6"]
[White "Buciu, Aurel-John"]
[Black "Frankenberger, Ralf"]
[Result "1/2-1/2"]
[ECO "D02"]
[WhiteElo "1807"]
[BlackElo "1939"]
[Annotator "RC"]
[PlyCount "21"]
[EventDate "2024.06.25"]
[EventType "swiss"]
[EventCountry "GER"]
[SourceTitle "playchess.com"]
[Source "ChessBase"]
[SourceQuality "1"]
[TimeControl "40/5400+30:1800+30"]

1. d4 {[%emt 0:00:15]} d5 {[%emt 0:00:18]} 2. Bf4 {[%emt 0:00:38]} Nf6 {[%emt 0:00:39]} 3. Nf3 {[%emt 0:00:29]} e6 {[%emt 0:00:33]} 4. e3 {[%emt 0:00:26]} Bd6 {[%emt 0:00:35]} 5. Bg5 {[%emt 0:00:07]} Nbd7 {[%emt 0:04:08]} 6. Bd3 {[%emt 0:00:34]} c5 {[%emt 0:00:28]} 7. c3 {[%emt 0:00:07]} Qc7 {[%emt 0:08:18]} 8. Nbd2 {[%emt 0:00:21]} h6 {[%emt 0:10:39]} 9. Bh4 {[%emt 0:00:48]} O-O {[%emt 0:00:37]} 10. O-O {[%emt 0:03:22]} cxd4 {[%emt 0:09:19]} 11. exd4 {[%emt 0:02:28]} 1/2-1/2

[Event "Seniors-LEM-50 Sachsen-Anhalt 2024"]
[Site "Magdeburg"]
[Date "2024.07.07"]
[Round "7.7"]
[White "Ahrens, Gunnar"]
[Black "Weitz, Andreas"]
[Result "1/2-1/2"]
[ECO "A03"]
[WhiteElo "1750"]
[BlackElo "1936"]
[Annotator "RC"]
[PlyCount "51"]
[EventDate "2024.06.25"]
[EventType "swiss"]
[EventCountry "GER"]
[SourceTitle "playchess.com"]
[Source "ChessBase"]
[SourceQuality "1"]
[TimeControl "40/5400+30:1800+30"]

1. f4 {[%emt 0:00:05]} d5 {[%emt 0:00:42]} 2. Nf3 {[%emt 0:00:05]} c5 {[%emt 0:00:11]} 3. e3 {[%emt 0:00:05]} a6 {[%emt 0:00:32]} 4. b3 {[%emt 0:01:03]} Nc6 {[%emt 0:03:26]} 5. Bb2 {[%emt 0:00:24]} Nf6 {[%emt 0:00:51]} 6. Be2 {[%emt 0:01:58]} e6 {[%emt 0:03:45]} 7. O-O {[%emt 0:00:46]} Be7 {[%emt 0:03:05]} 8. c3 {[%emt 0:03:48]} O-O {[%emt 0:00:37]} 9. Ne5 {[%emt 0:01:27]} Qc7 {[%emt 0:01:09]} 10. d4 {[%emt 0:04:55]} Ne4 {[%emt 0:04:43]} 11. Nd2 {[%emt 0:01:06]} f6 {[%emt 0:03:32]} 12. Nxc6 {[%emt 0:04:47]} Qxc6 {[%emt 0:00:57]} 13. Bd3 {[%emt 0:00:43]} Nxd2 {[%emt 0:03:57]} 14. Qxd2 {[%emt 0:00:21]} b5 {[%emt 0:00:35]} 15. Rac1 {[%emt 0:00:53]} c4 {[%emt 0:01:13]} 16. Bb1 {[%emt 0:00:27]} f5 {[%emt 0:00:35]} 17. Rf3 {[%emt 0:01:26]} g6 {[%emt 0:02:06]} 18. Qe1 {[%emt 0:01:59]} Rf7 {[%emt 0:06:27]} 19. h4 {[%emt 0:01:27]} Rg7 {[%emt 0:01:35]} 20. Rh3 {[%emt 0:01:04]} h5 {[%emt 0:04:20]} 21. g3 {[%emt 0:02:31]} Bf8 {[%emt 0:06:35]} 22. Rh2 {[%emt 0:00:17]} Rb8 {[%emt 0:01:52]} 23. b4 {[%emt 0:01:03]} a5 {[%emt 0:02:52]} 24. a3 {[%emt 0:00:34]} Ra7 {[%emt 0:00:20]} 25. Re2 {[%emt 0:01:33]} Bg7 {[%emt 0:06:04]} 26. Qd2 {[%emt 0:01:43]} 1/2-1/2

[Event "Seniors-LEM-50 Sachsen-Anhalt 2024"]
[Site "Magdeburg"]
[Date "2024.07.07"]
[Round "7.8"]
[White "Leib, Britta"]
[Black "Schroeder, Frank"]
[Result "1/2-1/2"]
[ECO "B01"]
[WhiteElo "1920"]
[BlackElo "1942"]
[Annotator "RC"]
[PlyCount "61"]
[EventDate "2024.06.25"]
[EventType "swiss"]
[EventCountry "GER"]
[SourceTitle "playchess.com"]
[Source "ChessBase"]
[SourceQuality "1"]
[TimeControl "40/5400+30:1800+30"]

1. e4 {[%emt 0:00:04]} d5 {[%emt 0:00:08]} 2. exd5 {[%emt 0:00:11]} Qxd5 {[%emt 0:00:12]} 3. Nc3 {[%emt 0:01:10]} Qd8 {[%emt 0:00:07]} 4. d4 {[%emt 0:03:15]} Nf6 {[%emt 0:00:07]} 5. Bc4 {[%emt 0:01:01]} a6 {[%emt 0:02:41]} 6. Nf3 {[%emt 0:02:28]} b5 {[%emt 0:00:49]} 7. Bb3 {[%emt 0:07:55]} c5 {[%emt 0:00:44]} 8. dxc5 {[%emt 0:09:58]} Qxd1+ {[%emt 0:00:12]} 9. Nxd1 {[%emt 0:00:04]} e6 {[%emt 0:00:16]} 10. O-O {[%emt 0:01:18]} Bxc5 {[%emt 0:00:22]} 11. Ne5 {[%emt 0:03:57]} Bb7 {[%emt 0:01:32]} 12. Nd3 {[%emt 0:02:31]} Bb6 {[%emt 0:02:48]} 13. Be3 {[%emt 0:01:18]} Nbd7 {[%emt 0:01:33]} 14. a4 {[%emt 0:01:51]} O-O {[%emt 0:03:39]} 15. Bxb6 {[%emt 0:06:42]} Nxb6 {[%emt 0:00:16]} 16. axb5 {[%emt 0:01:57]} axb5 {[%emt 0:00:02]} 17. Nc3 {[%emt 0:00:59]} Bc6 {[%emt 0:07:17]} 18. Ne5 {[%emt 0:04:12]} Bd5 {[%emt 0:15:18]} 19. Bxd5 {[%emt 0:04:40]} Nbxd5 {[%emt 0:01:13]} 20. Nxb5 {[%emt 0:03:09]} Rab8 {[%emt 0:03:10]} 21. c4 {[%emt 0:04:48]} Nb6 {[%emt 0:01:23]} 22. b3 {[%emt 0:01:31]} Ne4 {[%emt 0:03:16]} 23. Rfb1 {[%emt 0:06:02]} f6 {[%emt 0:03:01]} 24. Nc6 {[%emt 0:01:43]} Rb7 {[%emt 0:02:03]} 25. Rd1 {[%emt 0:10:36]} Nc5 {[%emt 0:05:46]} 26. Na5 {[%emt 0:06:36]} Rbb8 {[%emt 0:02:26]} 27. Rd6 {[%emt 0:02:21]} Nxb3 {[%emt 0:05:43]} 28. Nxb3 {[%emt 0:02:02]} Nxc4 {[%emt 0:00:11]} 29. Rxe6 {[%emt 0:02:34]} Rxb5 {[%emt 0:00:44]} 30. Nd4 {[%emt 0:02:07]} Rd5 {[%emt 0:16:34]} 31. Nf3 {[%emt 0:00:37]} 1/2-1/2

[Event "Seniors-LEM-50 Sachsen-Anhalt 2024"]
[Site "Magdeburg"]
[Date "2024.07.07"]
[Round "7.9"]
[White "Hencke, Heiko"]
[Black "Janeke, Thomas"]
[Result "1/2-1/2"]
[ECO "B01"]
[WhiteElo "1855"]
[BlackElo "1764"]
[Annotator "NA RC"]
[PlyCount "41"]
[EventDate "2024.06.25"]
[EventType "swiss"]
[EventCountry "GER"]
[SourceTitle "playchess.com"]
[Source "ChessBase"]
[SourceQuality "1"]
[TimeControl "40/5400+30:1800+30"]

1. e4 {[%emt 0:00:03]} d5 {[%emt 0:00:29]} 2. exd5 {[%emt 0:00:15]} Qxd5 {[%emt 0:00:07]} 3. Nc3 {[%emt 0:00:27]} Qa5 {[%emt 0:00:15]} 4. d4 {[%emt 0:00:38]} Nf6 {[%emt 0:00:13]} 5. Bd2 {[%emt 0:01:44]} c6 {[%emt 0:00:37]} 6. Bc4 {[%emt 0:02:00]} Bf5 {[%emt 0:00:12]} 7. Nd5 {[%emt 0:02:04]} Qd8 {[%emt 0:00:26]} 8. Nxf6+ {[%emt 0:00:45]} exf6 {[%emt 0:00:15]} 9. Nf3 {[%emt 0:00:54]} Bd6 {[%emt 0:00:17]} 10. O-O {[%emt 0:01:11]} O-O {[%emt 0:00:10]} 11. Re1 {[%emt 0:01:29]} Bg4 {[%emt 0:00:28]} 12. Re3 {[%emt 0:04:34]} Nd7 {[%emt 0:00:31]} 13. h3 {[%emt 0:05:38]} Bxf3 {[%emt 0:01:29]} 14. Qxf3 {[%emt 0:01:12]} Nb6 {[%emt 0:00:51]} 15. Bb3 {[%emt 0:02:39]} Re8 {[%emt 0:01:08]} 16. Rae1 {[%emt 0:00:30]} Qd7 {[%emt 0:01:47]} 17. Qh5 {[%emt 0:09:11]} Rxe3 {[%emt 0:00:44]} 18. Rxe3 {[%emt 0:03:50]} Re8 {[%emt 0:01:26]} 19. Qe2 {[%emt 0:01:51]} Rxe3 {[%emt 0:01:23]} 20. Qxe3 {[%emt 0:04:10]} Qe7 {[%emt 0:01:00]} 21. Qxe7 {[%emt 0:01:54]} 1/2-1/2

[Event "Seniors-LEM-50 Sachsen-Anhalt 2024"]
[Site "Magdeburg"]
[Date "2024.07.07"]
[Round "7.10"]
[White "Richter, Juergen"]
[Black "Gaertig, Johannes"]
[Result "1/2-1/2"]
[ECO "E20"]
[WhiteElo "1841"]
[BlackElo "1687"]
[Annotator "NA RC"]
[PlyCount "45"]
[EventDate "2024.06.25"]
[EventType "swiss"]
[EventCountry "GER"]
[SourceTitle "playchess.com"]
[Source "ChessBase"]
[SourceQuality "1"]
[TimeControl "40/5400+30:1800+30"]

1. c4 {[%emt 1:31:00]} Nf6 {[%emt 1:31:00]} 2. Nc3 {[%emt 0:00:30]} c6 {[%emt 0:00:30]} 3. d4 {[%emt 0:00:30]} e6 {[%emt 0:00:30]} 4. e4 {[%emt 0:00:30]} Bb4 {[%emt 0:00:30]} 5. Qc2 {[%emt 0:00:30]} d5 {[%emt 0:00:30]} 6. e5 {[%emt 0:00:30]} Ne4 {[%emt 0:00:30]} 7. f3 {[%emt 0:00:30]} Bxc3+ {[%emt 0:00:30]} 8. bxc3 {[%emt 0:00:30]} Qh4+ {[%emt 0:00:30]} 9. g3 {[%emt 0:00:30]} Nxg3 {[%emt 0:00:30]} 10. Qf2 {[%emt 0:00:30]} Nf5 {[%emt 0:00:30]} 11. Qxh4 {[%emt 0:00:30]} Nxh4 {[%emt 0:00:30]} 12. c5 {[%emt 0:00:30]} O-O {[%emt 0:00:30]} 13. Bg5 {[%emt 0:00:30]} Nf5 {[%emt 0:00:30]} 14. Rb1 {[%emt 0:00:30]} Nd7 {[%emt 0:00:30]} 15. a4 {[%emt 0:00:30]} b6 {[%emt 0:00:30]} 16. Bd3 {[%emt 0:00:30]} Re8 {[%emt 0:00:30]} 17. Ne2 {[%emt 0:00:30]} bxc5 {[%emt 0:00:30]} 18. Kd2 {[%emt 0:00:30]} h6 {[%emt 0:00:30]} 19. Bf4 {[%emt 0:00:30]} c4 {[%emt 0:00:30]} 20. Bc2 {[%emt 0:00:30]} Nh4 {[%emt 0:00:30]} 21. Rhf1 {[%emt 0:00:30]} Nf8 {[%emt 0:00:30]} 22. Bg3 {[%emt 0:00:30]} Nf5 {[%emt 0:00:30]} 23. Bf2 {[%emt 0:00:30]} 1/2-1/2